[Event "Late-Titled-Tuesday-Blitz-September-19-2023"]
[Site "Chess.com"]
[Date "2023.09.19"]
[Round "1"]
[White "Dewarfd"]
[Black "Djager97"]
[Result "0-1"]
[WhiteElo "2200"]
[BlackElo "2537"]
[TimeControl "180+1"]
[EndTime "14:07:56 PDT"]
[Termination "Djager97 won by resignation"]

1. d4 {[%clk 0:02:58.1]} 1... d5 {[%clk 0:02:57.9]} 2. e3 {[%clk 0:02:58.3]}
2... Nf6 {[%clk 0:02:57]} 3. Nf3 {[%clk 0:02:58.4]} 3... c5 {[%clk 0:02:56]} 4.
dxc5 {[%clk 0:02:58]} 4... Nc6 {[%clk 0:02:52.6]} 5. Bb5 {[%clk 0:02:57.3]} 5...
e6 {[%clk 0:02:51.8]} 6. O-O {[%clk 0:02:57]} 6... Bxc5 {[%clk 0:02:51.5]} 7. a3
{[%clk 0:02:57.1]} 7... O-O {[%clk 0:02:51.2]} 8. b4 {[%clk 0:02:57.1]} 8... Bd6
{[%clk 0:02:50.4]} 9. Bb2 {[%clk 0:02:57]} 9... a6 {[%clk 0:02:50.5]} 10. Bxc6
{[%clk 0:02:56.7]} 10... bxc6 {[%clk 0:02:51.4]} 11. c4 {[%clk 0:02:56.7]} 11...
a5 {[%clk 0:02:50]} 12. c5 {[%clk 0:02:44.9]} 12... Bc7 {[%clk 0:02:43]} 13. Ne5
{[%clk 0:02:44.4]} 13... Ba6 {[%clk 0:02:22.4]} 14. Re1 {[%clk 0:02:09.6]} 14...
Bxe5 {[%clk 0:02:08.8]} 15. Bxe5 {[%clk 0:02:10.3]} 15... axb4 {[%clk
0:02:04.5]} 16. axb4 {[%clk 0:02:10.4]} 16... Nd7 {[%clk 0:01:56.9]} 17. Bd6
{[%clk 0:02:09.3]} 17... Re8 {[%clk 0:01:57.5]} 18. Nc3 {[%clk 0:02:05.3]} 18...
Bc4 {[%clk 0:01:57.6]} 19. Rxa8 {[%clk 0:01:55.4]} 19... Qxa8 {[%clk 0:01:58.5]}
20. Qa1 {[%clk 0:01:55.2]} 20... Qb7 {[%clk 0:01:46.8]} 21. Qb2 {[%clk
0:01:51.2]} 21... Ra8 {[%clk 0:01:46.2]} 22. Ra1 {[%clk 0:01:48.8]} 22... f6
{[%clk 0:01:37.5]} 23. Rxa8+ {[%clk 0:01:48]} 23... Qxa8 {[%clk 0:01:38.4]} 24.
h3 {[%clk 0:01:39.1]} 24... Qa6 {[%clk 0:01:34.9]} 25. Qc2 {[%clk 0:01:26.4]}
25... g6 {[%clk 0:01:19.9]} 26. Qa4 {[%clk 0:01:20.9]} 26... Kf7 {[%clk
0:01:05.1]} 27. Qxa6 {[%clk 0:01:14.8]} 27... Bxa6 {[%clk 0:01:06]} 28. f3
{[%clk 0:01:12.9]} 28... e5 {[%clk 0:01:04.2]} 29. Kf2 {[%clk 0:01:05.7]} 29...
Ke6 {[%clk 0:01:03.9]} 30. Ke1 {[%clk 0:01:05.7]} 30... d4 {[%clk 0:00:59]} 31.
exd4 {[%clk 0:01:05.7]} 31... exd4 {[%clk 0:00:59.9]} 32. Nb1 {[%clk 0:00:57.4]}
32... Kd5 {[%clk 0:00:54.7]} 33. Na3 {[%clk 0:00:57.1]} 33... Ne5 {[%clk
0:00:36.7]} 34. Bxe5 {[%clk 0:00:55]} 34... fxe5 {[%clk 0:00:34.7]} 35. Kd2
{[%clk 0:00:54.1]} 35... Bf1 {[%clk 0:00:33]} 36. g3 {[%clk 0:00:24.8]} 36...
Bxh3 {[%clk 0:00:31.1]} 37. Ke2 {[%clk 0:00:24]} 37... Bc8 {[%clk 0:00:27.7]}
38. Kf2 {[%clk 0:00:22.8]} 38... Ba6 {[%clk 0:00:22.3]} 39. Ke1 {[%clk
0:00:22.9]} 39... e4 {[%clk 0:00:20.6]} 40. fxe4+ {[%clk 0:00:23]} 40... Kxe4
{[%clk 0:00:21.5]} 41. Kd2 {[%clk 0:00:18.3]} 41... h5 {[%clk 0:00:21.3]} 42. b5
{[%clk 0:00:15.8]} 42... cxb5 {[%clk 0:00:20.9]} 43. c6 {[%clk 0:00:16.6]} 43...
Kd5 {[%clk 0:00:15.4]} 44. c7 {[%clk 0:00:16.4]} 44... Kc6 {[%clk 0:00:14.5]}
45. Nxb5 {[%clk 0:00:15.9]} 45... Kxb5 {[%clk 0:00:13.7]} 46. Kd3 {[%clk
0:00:14.9]} 46... Kc6+ {[%clk 0:00:12.6]} 47. Kxd4 {[%clk 0:00:15]} 47... Kxc7
{[%clk 0:00:12.6]} 48. Ke5 {[%clk 0:00:15.4]} 48... Be2 {[%clk 0:00:11.8]} 49.
Kf6 {[%clk 0:00:15]} 49... Bg4 {[%clk 0:00:10.9]} 50. Kxg6 {[%clk 0:00:14.9]}
50... Kd6 {[%clk 0:00:11.8]} 51. Kg5 {[%clk 0:00:15.3]} 51... Ke5 {[%clk
0:00:11.9]} 52. Kh4 {[%clk 0:00:15.6]} 52... Ke4 {[%clk 0:00:12.1]} 53. Kg5
{[%clk 0:00:15.7]} 53... Kf3 {[%clk 0:00:12.5]} 54. Kh4 {[%clk 0:00:15.9]} 54...
Kg2 {[%clk 0:00:12.7]} 55. Kg5 {[%clk 0:00:15.9]} 55... Kxg3 {[%clk 0:00:13.6]}
56. Kf6 {[%clk 0:00:14.7]} 56... h4 {[%clk 0:00:14.5]} 57. Ke5 {[%clk
0:00:15.3]} 57... h3 {[%clk 0:00:15.4]} 0-1

[Event "Late-Titled-Tuesday-Blitz-September-19-2023"]
[Site "Chess.com"]
[Date "2023.09.19"]
[Round "1"]
[White "YEIKO2017"]
[Black "Korchmar_Vasiliy"]
[Result "0-1"]
[WhiteElo "2440"]
[BlackElo "2749"]
[TimeControl "180+1"]
[EndTime "14:07:58 PDT"]
[Termination "Korchmar_Vasiliy won by resignation"]

1. e4 {[%clk 0:03:00.9]} 1... c5 {[%clk 0:02:59.9]} 2. Nf3 {[%clk 0:03:00.9]}
2... d6 {[%clk 0:02:59.5]} 3. d4 {[%clk 0:03:01]} 3... cxd4 {[%clk 0:03:00.4]}
4. Nxd4 {[%clk 0:03:01.1]} 4... Nf6 {[%clk 0:03:00.7]} 5. Nc3 {[%clk 0:02:54.7]}
5... Nc6 {[%clk 0:03:00.8]} 6. Bg5 {[%clk 0:02:54.4]} 6... Bd7 {[%clk 0:03:00]}
7. Bxf6 {[%clk 0:02:39.3]} 7... gxf6 {[%clk 0:02:58.9]} 8. Be2 {[%clk
0:02:39.5]} 8... Rg8 {[%clk 0:02:34.9]} 9. O-O {[%clk 0:02:25]} 9... Bh6 {[%clk
0:02:26.7]} 10. Nf5 {[%clk 0:02:12.1]} 10... Bxf5 {[%clk 0:02:23.1]} 11. exf5
{[%clk 0:02:10.2]} 11... Bf4 {[%clk 0:02:01.3]} 12. g3 {[%clk 0:02:06.5]} 12...
Be5 {[%clk 0:02:01.3]} 13. Nd5 {[%clk 0:02:05.4]} 13... Qd7 {[%clk 0:01:42.4]}
14. c3 {[%clk 0:01:49.6]} 14... e6 {[%clk 0:01:22.2]} 15. fxe6 {[%clk
0:01:48.8]} 15... fxe6 {[%clk 0:01:23.1]} 16. Bh5+ {[%clk 0:01:48.6]} 16... Kd8
{[%clk 0:01:11.6]} 17. Ne3 {[%clk 0:01:48.6]} 17... f5 {[%clk 0:01:10.4]} 18.
Nc4 {[%clk 0:01:45.1]} 18... Kc7 {[%clk 0:01:03.9]} 19. b4 {[%clk 0:01:36.3]}
19... Bxc3 {[%clk 0:00:50.7]} 20. b5 {[%clk 0:01:35.9]} 20... Ne5 {[%clk
0:00:41.9]} 21. Rc1 {[%clk 0:01:12.6]} 21... Nxc4 {[%clk 0:00:42]} 22. Rxc3
{[%clk 0:01:12.6]} 22... d5 {[%clk 0:00:42.6]} 23. a4 {[%clk 0:01:04]} 23...
Rac8 {[%clk 0:00:38.8]} 24. Qd4 {[%clk 0:00:59.3]} 24... Kb8 {[%clk 0:00:38.1]}
25. Rfc1 {[%clk 0:01:00]} 25... e5 {[%clk 0:00:22.8]} 26. Qd3 {[%clk 0:00:43.3]}
26... Rgd8 {[%clk 0:00:22.9]} 27. h3 {[%clk 0:00:38.2]} 27... f4 {[%clk
0:00:17.7]} 28. Bg4 {[%clk 0:00:38.2]} 28... Qf7 {[%clk 0:00:09.6]} 29. Bxc8
{[%clk 0:00:37.9]} 29... Rxc8 {[%clk 0:00:10.5]} 30. g4 {[%clk 0:00:35]} 30...
h5 {[%clk 0:00:10.1]} 31. f3 {[%clk 0:00:33.6]} 31... hxg4 {[%clk 0:00:09.9]}
32. hxg4 {[%clk 0:00:33.9]} 32... Rh8 {[%clk 0:00:05.6]} 33. Rxc4 {[%clk
0:00:31.1]} 33... dxc4 {[%clk 0:00:04.8]} 34. Qd6+ {[%clk 0:00:31.8]} 34... Ka8
{[%clk 0:00:03.5]} 35. Qxe5 {[%clk 0:00:31.9]} 35... Qh7 {[%clk 0:00:03.8]} 36.
Qh5 {[%clk 0:00:20.3]} 36... Qg7 {[%clk 0:00:03.3]} 37. Rxc4 {[%clk 0:00:18.4]}
37... Qa1+ {[%clk 0:00:02.2]} 38. Kg2 {[%clk 0:00:14.9]} 38... Qb2+ {[%clk
0:00:02.6]} 39. Kf1 {[%clk 0:00:14.7]} 39... Qb1+ {[%clk 0:00:02.4]} 40. Ke2
{[%clk 0:00:14.8]} 40... Qa2+ {[%clk 0:00:02.5]} 41. Kd3 {[%clk 0:00:14.3]}
41... Qb1+ {[%clk 0:00:02.4]} 42. Kd4 {[%clk 0:00:14]} 42... Qd1+ {[%clk
0:00:02.3]} 43. Ke5 {[%clk 0:00:14]} 43... Qe1+ {[%clk 0:00:01.5]} 44. Kxf4
{[%clk 0:00:14]} 44... Rf8+ {[%clk 0:00:01.7]} 45. Kg5 {[%clk 0:00:11.5]} 45...
Qe7+ {[%clk 0:00:02.1]} 46. Kg6 {[%clk 0:00:08.6]} 46... Qf7+ {[%clk 0:00:02.5]}
47. Kg5 {[%clk 0:00:08.6]} 47... Qxc4 {[%clk 0:00:02.8]} 48. Qg6 {[%clk
0:00:07.8]} 48... Qc8 {[%clk 0:00:03]} 49. f4 {[%clk 0:00:06.9]} 49... Rg8
{[%clk 0:00:03.6]} 50. f5 {[%clk 0:00:06]} 50... Rxg6+ {[%clk 0:00:04.3]} 51.
fxg6 {[%clk 0:00:06.6]} 51... Qg8 {[%clk 0:00:04.8]} 52. Kh6 {[%clk 0:00:07]}
52... Kb8 {[%clk 0:00:05.3]} 53. g7 {[%clk 0:00:06.9]} 53... Kc7 {[%clk
0:00:05.9]} 0-1

[Event "Late-Titled-Tuesday-Blitz-September-19-2023"]
[Site "Chess.com"]
[Date "2023.09.19"]
[Round "1"]
[White "imdarealist"]
[Black "ValeriyGrinev"]
[Result "0-1"]
[WhiteElo "2251"]
[BlackElo "2555"]
[TimeControl "180+1"]
[EndTime "14:07:59 PDT"]
[Termination "ValeriyGrinev won on time"]

1. d4 {[%clk 0:03:00.9]} 1... Nf6 {[%clk 0:02:59.6]} 2. Bf4 {[%clk 0:03:01.2]}
2... c5 {[%clk 0:02:59]} 3. e3 {[%clk 0:02:58.2]} 3... Qb6 {[%clk 0:02:58.4]} 4.
Na3 {[%clk 0:02:58.2]} 4... d5 {[%clk 0:02:57.7]} 5. Nb5 {[%clk 0:02:55.9]} 5...
Na6 {[%clk 0:02:57.7]} 6. Nf3 {[%clk 0:02:43.7]} 6... Bd7 {[%clk 0:02:55.7]} 7.
a4 {[%clk 0:02:42]} 7... e6 {[%clk 0:02:47.5]} 8. c3 {[%clk 0:02:33.2]} 8... Nh5
{[%clk 0:02:46.6]} 9. Be5 {[%clk 0:02:32.3]} 9... f6 {[%clk 0:02:45.7]} 10. dxc5
{[%clk 0:02:29.3]} 10... Bxc5 {[%clk 0:02:41.6]} 11. Bd4 {[%clk 0:02:29.2]}
11... g6 {[%clk 0:02:28.3]} 12. Be2 {[%clk 0:02:17.4]} 12... O-O {[%clk
0:02:22]} 13. O-O {[%clk 0:02:17]} 13... Rad8 {[%clk 0:02:20.7]} 14. a5 {[%clk
0:01:57.3]} 14... Qc6 {[%clk 0:02:08.8]} 15. Nxa7 {[%clk 0:01:55.7]} 15... Bxa7
{[%clk 0:02:04.5]} 16. Bxa7 {[%clk 0:01:56.6]} 16... e5 {[%clk 0:02:03.4]} 17.
Qb3 {[%clk 0:01:37.3]} 17... Nc5 {[%clk 0:01:59.1]} 18. Bxc5 {[%clk 0:01:32.6]}
18... Qxc5 {[%clk 0:02:00]} 19. Rfd1 {[%clk 0:01:28.4]} 19... Bc6 {[%clk
0:01:57.4]} 20. Nd2 {[%clk 0:01:07.3]} 20... Ng7 {[%clk 0:01:55]} 21. c4 {[%clk
0:01:03.4]} 21... d4 {[%clk 0:01:45.6]} 22. exd4 {[%clk 0:01:03.5]} 22... Rxd4
{[%clk 0:01:45.3]} 23. Nf3 {[%clk 0:01:01]} 23... Rg4 {[%clk 0:01:45.3]} 24. h3
{[%clk 0:00:57.6]} 24... Re4 {[%clk 0:01:41.9]} 25. Bd3 {[%clk 0:00:50.3]} 25...
Rf4 {[%clk 0:01:42.1]} 26. Be2 {[%clk 0:00:50.6]} 26... Nf5 {[%clk 0:01:37.8]}
27. Rf1 {[%clk 0:00:36]} 27... Bxf3 {[%clk 0:01:36.9]} 28. Bxf3 {[%clk
0:00:34.7]} 28... Nd4 {[%clk 0:01:37.6]} 29. Qxb7 {[%clk 0:00:29.6]} 29... Nxf3+
{[%clk 0:01:27]} 30. gxf3 {[%clk 0:00:30.5]} 30... Rxc4 {[%clk 0:01:11.7]} 31.
a6 {[%clk 0:00:28.8]} 31... Rb4 {[%clk 0:01:12.1]} 32. Qd7 {[%clk 0:00:24.2]}
32... Rd4 {[%clk 0:01:05.8]} 33. Qe6+ {[%clk 0:00:22.2]} 33... Kg7 {[%clk
0:01:02.2]} 34. a7 {[%clk 0:00:21.9]} 34... Rdd8 {[%clk 0:01:00.4]} 35. Rfc1
{[%clk 0:00:19.2]} 35... Qd4 {[%clk 0:00:48.1]} 36. Rc7+ {[%clk 0:00:17.4]}
36... Kh6 {[%clk 0:00:48.5]} 37. Qe7 {[%clk 0:00:17.3]} 37... Qxb2 {[%clk
0:00:44.2]} 38. Qxh7+ {[%clk 0:00:13.9]} 38... Kg5 {[%clk 0:00:44.5]} 39. Re1
{[%clk 0:00:10.2]} 39... Qd2 {[%clk 0:00:32.2]} 40. Rec1 {[%clk 0:00:07.3]}
40... Qf4 {[%clk 0:00:31.4]} 41. Qe7 {[%clk 0:00:04.8]} 41... Qxf3 {[%clk
0:00:26.8]} 42. Qc5 {[%clk 0:00:05.5]} 42... Qxh3 {[%clk 0:00:24.2]} 43. Qe3+
{[%clk 0:00:04.6]} 43... Qxe3 {[%clk 0:00:24.3]} 44. fxe3 {[%clk 0:00:05.5]}
44... Ra8 {[%clk 0:00:24.6]} 45. Rb1 {[%clk 0:00:05.4]} 45... Kf5 {[%clk
0:00:22.4]} 46. Rbb7 {[%clk 0:00:05.8]} 46... Ke4 {[%clk 0:00:22.6]} 47. Kf2
{[%clk 0:00:05.7]} 47... Rh8 {[%clk 0:00:21.8]} 48. Rb4+ {[%clk 0:00:06.1]}
48... Kf5 {[%clk 0:00:21.7]} 49. Rbb7 {[%clk 0:00:05.6]} 49... Rh2+ {[%clk
0:00:20.8]} 50. Kf3 {[%clk 0:00:05.8]} 50... Ra2 {[%clk 0:00:21.5]} 51. Rg7
{[%clk 0:00:04.8]} 51... g5 {[%clk 0:00:20.2]} 52. Rbe7 {[%clk 0:00:02.7]} 52...
Ra4 {[%clk 0:00:16.7]} 53. e4+ {[%clk 0:00:03.6]} 53... Rxe4 {[%clk 0:00:16.7]}
54. Rgf7 {[%clk 0:00:02.6]} 54... Ra4 {[%clk 0:00:16.9]} 55. Rb7 {[%clk
0:00:02.4]} 55... Ra3+ {[%clk 0:00:17.4]} 56. Ke2 {[%clk 0:00:02.5]} 56... g4
{[%clk 0:00:18.1]} 57. Rg7 {[%clk 0:00:01.1]} 57... Kf4 {[%clk 0:00:18.3]} 58.
Rgf7 {[%clk 0:00:01.1]} 58... f5 {[%clk 0:00:18.9]} 59. Kf2 {[%clk 0:00:01.4]}
59... Ra2+ {[%clk 0:00:19]} 0-1

[Event "Late-Titled-Tuesday-Blitz-September-19-2023"]
[Site "Chess.com"]
[Date "2023.09.19"]
[Round "1"]
[White "Journey_to_GrandMaster_YT"]
[Black "Chessdemon2019"]
[Result "1-0"]
[WhiteElo "2677"]
[BlackElo "2388"]
[TimeControl "180+1"]
[EndTime "14:08:03 PDT"]
[Termination "Journey_to_GrandMaster_YT won by resignation"]

1. d4 {[%clk 0:02:58.9]} 1... d5 {[%clk 0:02:58.7]} 2. Nf3 {[%clk 0:02:53.1]}
2... Nf6 {[%clk 0:02:58]} 3. c4 {[%clk 0:02:52.7]} 3... c6 {[%clk 0:02:56.4]} 4.
Nc3 {[%clk 0:02:52.5]} 4... e6 {[%clk 0:02:55.1]} 5. e3 {[%clk 0:02:50.5]} 5...
Bd6 {[%clk 0:02:53.2]} 6. Qc2 {[%clk 0:02:49.5]} 6... O-O {[%clk 0:02:52.1]} 7.
b3 {[%clk 0:02:49]} 7... b6 {[%clk 0:02:50.6]} 8. Bd3 {[%clk 0:02:48.3]} 8...
Bb7 {[%clk 0:02:49.3]} 9. O-O {[%clk 0:02:47.5]} 9... Nbd7 {[%clk 0:02:49.1]}
10. Bb2 {[%clk 0:02:42.7]} 10... Qe7 {[%clk 0:02:48.2]} 11. Rfe1 {[%clk
0:02:28.4]} 11... c5 {[%clk 0:02:46.6]} 12. Rad1 {[%clk 0:02:20]} 12... Rac8
{[%clk 0:02:43.1]} 13. cxd5 {[%clk 0:02:11.7]} 13... Nxd5 {[%clk 0:02:42.6]} 14.
Bxh7+ {[%clk 0:01:59.3]} 14... Kh8 {[%clk 0:02:42.8]} 15. Be4 {[%clk 0:01:54.5]}
15... Nb4 {[%clk 0:02:40.6]} 16. Qb1 {[%clk 0:01:45.3]} 16... Nf6 {[%clk
0:02:38.1]} 17. Bxb7 {[%clk 0:01:42]} 17... Qxb7 {[%clk 0:02:38.3]} 18. Nb5
{[%clk 0:01:31.5]} 18... Bb8 {[%clk 0:02:29.7]} 19. dxc5 {[%clk 0:01:30.5]}
19... Rxc5 {[%clk 0:02:29.7]} 20. Nd6 {[%clk 0:01:20.8]} 20... Bxd6 {[%clk
0:02:23.1]} 21. Rxd6 {[%clk 0:01:20.1]} 21... Rf5 {[%clk 0:02:16.5]} 22. Red1
{[%clk 0:01:12.4]} 22... Rxf3 {[%clk 0:01:53]} 23. Rd8 {[%clk 0:01:07.9]} 23...
Kg8 {[%clk 0:01:44.8]} 24. gxf3 {[%clk 0:00:47.6]} 24... Qxf3 {[%clk 0:01:44.4]}
25. Be5 {[%clk 0:00:47.5]} 25... Nc6 {[%clk 0:01:29.1]} 26. Rxf8+ {[%clk
0:00:46.3]} 26... Kxf8 {[%clk 0:01:29.2]} 27. Bg3 {[%clk 0:00:44.4]} 27... Nd5
{[%clk 0:01:20.6]} 28. Qc1 {[%clk 0:00:35.5]} 28... Nce7 {[%clk 0:01:10]} 29.
Re1 {[%clk 0:00:30.8]} 29... f5 {[%clk 0:01:07.6]} 30. Qd1 {[%clk 0:00:29.7]}
30... Qe4 {[%clk 0:01:02.5]} 31. Qd4 {[%clk 0:00:29.3]} 31... Qxd4 {[%clk
0:00:58.8]} 32. exd4 {[%clk 0:00:29.4]} 32... Kf7 {[%clk 0:00:59.6]} 33. Be5
{[%clk 0:00:28.1]} 33... Nc6 {[%clk 0:00:57.1]} 34. Rc1 {[%clk 0:00:27.7]} 34...
Nxe5 {[%clk 0:00:54.3]} 35. dxe5 {[%clk 0:00:28.6]} 35... f4 {[%clk 0:00:54.3]}
36. Kg2 {[%clk 0:00:27.5]} 36... Kg6 {[%clk 0:00:54.6]} 37. Rc8 {[%clk
0:00:25.5]} 37... Kf5 {[%clk 0:00:54.1]} 38. Rg8 {[%clk 0:00:25.6]} 38... g5
{[%clk 0:00:53.6]} 39. Kf3 {[%clk 0:00:23.4]} 39... a5 {[%clk 0:00:45.5]} 40.
Rf8+ {[%clk 0:00:20.6]} 40... Kxe5 {[%clk 0:00:45.5]} 41. Kg4 {[%clk 0:00:21.2]}
41... Nf6+ {[%clk 0:00:42]} 42. Kf3 {[%clk 0:00:12.8]} 42... g4+ {[%clk
0:00:42.3]} 43. Ke2 {[%clk 0:00:12.9]} 43... Nd5 {[%clk 0:00:38.6]} 44. Rg8
{[%clk 0:00:11.3]} 44... Kf5 {[%clk 0:00:37.4]} 45. Rf8+ {[%clk 0:00:10.7]}
45... Ke4 {[%clk 0:00:37.8]} 46. Rg8 {[%clk 0:00:09.7]} 46... Nf6 {[%clk
0:00:35.4]} 47. Rg6 {[%clk 0:00:09.3]} 47... Kf5 {[%clk 0:00:34.6]} 48. Rg7
{[%clk 0:00:09.7]} 48... e5 {[%clk 0:00:33.6]} 49. Kd3 {[%clk 0:00:09.5]} 49...
e4+ {[%clk 0:00:33.3]} 50. Kd4 {[%clk 0:00:09.5]} 50... Nh5 {[%clk 0:00:30]} 51.
Rf7+ {[%clk 0:00:08.6]} 51... Kg5 {[%clk 0:00:30]} 52. Kxe4 {[%clk 0:00:08.1]}
52... Kh4 {[%clk 0:00:30.1]} 53. Rh7 {[%clk 0:00:04.6]} 53... Kg5 {[%clk
0:00:30.5]} 54. Rxh5+ {[%clk 0:00:04.7]} 54... Kxh5 {[%clk 0:00:30.8]} 55. Kxf4
{[%clk 0:00:05.3]} 55... Kh4 {[%clk 0:00:31.2]} 56. Kf5 {[%clk 0:00:05.5]} 56...
Kh3 {[%clk 0:00:31.6]} 57. Kg5 {[%clk 0:00:05.6]} 57... b5 {[%clk 0:00:31.1]}
58. a3 {[%clk 0:00:05.6]} 58... a4 {[%clk 0:00:31.7]} 59. b4 {[%clk 0:00:04.9]}
59... Kxh2 {[%clk 0:00:28.5]} 60. Kxg4 {[%clk 0:00:05.4]} 60... Kg2 {[%clk
0:00:29.4]} 61. f4 {[%clk 0:00:05.9]} 61... Kf2 {[%clk 0:00:30.3]} 62. f5 {[%clk
0:00:06.8]} 62... Ke3 {[%clk 0:00:31.2]} 63. f6 {[%clk 0:00:07.6]} 63... Kd4
{[%clk 0:00:32.1]} 64. f7 {[%clk 0:00:08.3]} 64... Kc4 {[%clk 0:00:33]} 65. f8=Q
{[%clk 0:00:08.8]} 65... Kb3 {[%clk 0:00:33.9]} 66. Qf3+ {[%clk 0:00:08.6]}
66... Ka2 {[%clk 0:00:34.8]} 67. Qc3 {[%clk 0:00:08.4]} 67... Kb1 {[%clk
0:00:35.1]} 68. Kf4 {[%clk 0:00:08.9]} 1-0

[Event "Late-Titled-Tuesday-Blitz-September-19-2023"]
[Site "Chess.com"]
[Date "2023.09.19"]
[Round "1"]
[White "enestnrvrd"]
[Black "gabduschew"]
[Result "1-0"]
[WhiteElo "2676"]
[BlackElo "2382"]
[TimeControl "180+1"]
[EndTime "14:08:04 PDT"]
[Termination "enestnrvrd won on time"]

1. Nf3 {[%clk 0:03:00.9]} 1... g6 {[%clk 0:02:57.2]} 2. e4 {[%clk 0:02:58.9]}
2... Bg7 {[%clk 0:02:56.8]} 3. d4 {[%clk 0:02:59.5]} 3... d6 {[%clk 0:02:56.6]}
4. Bc4 {[%clk 0:03:00.1]} 4... c6 {[%clk 0:02:55.2]} 5. Qe2 {[%clk 0:02:58]}
5... b5 {[%clk 0:02:53.6]} 6. Bb3 {[%clk 0:02:57.3]} 6... a5 {[%clk 0:02:53.1]}
7. a4 {[%clk 0:02:57.1]} 7... b4 {[%clk 0:02:50]} 8. O-O {[%clk 0:02:54.3]} 8...
Ba6 {[%clk 0:02:44.4]} 9. Bc4 {[%clk 0:02:52.8]} 9... d5 {[%clk 0:02:40.5]} 10.
exd5 {[%clk 0:02:51.6]} 10... Bxc4 {[%clk 0:02:37.2]} 11. Qxc4 {[%clk
0:02:51.1]} 11... cxd5 {[%clk 0:02:36.8]} 12. Qb5+ {[%clk 0:02:49.7]} 12... Qd7
{[%clk 0:02:35.9]} 13. Bf4 {[%clk 0:02:47.3]} 13... Nc6 {[%clk 0:02:20.1]} 14.
Nbd2 {[%clk 0:02:39.2]} 14... Nxd4 {[%clk 0:02:01.7]} 15. Nxd4 {[%clk
0:02:38.8]} 15... Bxd4 {[%clk 0:02:01.3]} 16. Nb3 {[%clk 0:02:29.2]} 16... Qxb5
{[%clk 0:02:00.1]} 17. axb5 {[%clk 0:02:28.4]} 17... Bb6 {[%clk 0:02:00.5]} 18.
Bd2 {[%clk 0:02:24.8]} 18... Rc8 {[%clk 0:01:49.3]} 19. Nxa5 {[%clk 0:02:23.8]}
19... Rxc2 {[%clk 0:01:45.3]} 20. Bxb4 {[%clk 0:02:24.4]} 20... Nf6 {[%clk
0:01:41.6]} 21. Nc6 {[%clk 0:02:23.6]} 21... Kd7 {[%clk 0:01:28]} 22. Ra6 {[%clk
0:02:16.8]} 22... Rxc6 {[%clk 0:01:06]} 23. bxc6+ {[%clk 0:02:16.1]} 23... Kxc6
{[%clk 0:01:06.9]} 24. Bxe7 {[%clk 0:02:09.4]} 24... Ne4 {[%clk 0:01:05.7]} 25.
Raa1 {[%clk 0:01:35.6]} 25... Re8 {[%clk 0:00:57.2]} 26. Bb4 {[%clk 0:01:34.7]}
26... Kb5 {[%clk 0:00:56]} 27. Be1 {[%clk 0:01:30.9]} 27... d4 {[%clk 0:00:51]}
28. Rd1 {[%clk 0:01:26.7]} 28... Kc4 {[%clk 0:00:49.9]} 29. g3 {[%clk
0:01:21.4]} 29... d3 {[%clk 0:00:44.4]} 30. b3+ {[%clk 0:01:19.8]} 30... Kd4
{[%clk 0:00:43.9]} 31. f3 {[%clk 0:01:15.4]} 31... Nc3 {[%clk 0:00:31.5]} 32.
Bf2+ {[%clk 0:01:14.6]} 32... Re3 {[%clk 0:00:30.4]} 33. Rd2 {[%clk 0:00:23.8]}
33... Ne2+ {[%clk 0:00:26.8]} 34. Kg2 {[%clk 0:00:22.9]} 34... Kc3 {[%clk
0:00:26]} 35. Rfd1 {[%clk 0:00:20.1]} 35... Nc1 {[%clk 0:00:13.3]} 36. Bxe3
{[%clk 0:00:17.5]} 36... Bxe3 {[%clk 0:00:12.8]} 37. Rxd3+ {[%clk 0:00:07.3]}
37... Nxd3 {[%clk 0:00:12.2]} 38. f4 {[%clk 0:00:08]} 38... Bd2 {[%clk
0:00:09.1]} 39. Kf3 {[%clk 0:00:06]} 39... f5 {[%clk 0:00:08.4]} 40. h3 {[%clk
0:00:04.5]} 40... Kc2 {[%clk 0:00:06.1]} 41. Rh1 {[%clk 0:00:05]} 41... Kxb3
{[%clk 0:00:05.1]} 42. Ke2 {[%clk 0:00:05.3]} 42... Kc2 {[%clk 0:00:04.4]} 43.
Ra1 {[%clk 0:00:05.1]} 43... Nc1+ {[%clk 0:00:03.4]} 44. Kf3 {[%clk 0:00:05.1]}
44... Bc3 {[%clk 0:00:02.9]} 45. Ra7 {[%clk 0:00:05]} 45... h5 {[%clk
0:00:01.4]} 46. Ra6 {[%clk 0:00:05.3]} 1-0